bitfinex/quotes_BTCUSD_20230403
["timestamp","ask_amount","ask_price","bid_price","bid_amount"]
[1680496734576,5.11703283,27673.0,27672.0,0.15026752]
[1680496734796,5.35888148,27673.0,27672.0,0.15026752]
[1680496735011,5.33188148,27673.0,27672.0,0.15026752]
[1680496735237,5.35888148,27673.0,27672.0,0.15026752]
[1680496735486,5.33188148,27673.0,27672.0,0.15026752]
[1680496735705,5.35888148,27673.0,27672.0,0.15026752]
[1680496736138,5.33188148,27673.0,27672.0,0.15026752]
[1680496736359,5.11703283,27673.0,27672.0,0.15026752]
[1680496736835,5.33185575,27673.0,27672.0,0.14844752]
[1680496737265,5.35885575,27673.0,27672.0,0.14844752]
[1680496737484,5.33185575,27673.0,27672.0,0.14844752]
[1680496737703,5.35885575,27673.0,27672.0,0.14844752]
[1680496737912,5.33185575,27673.0,27672.0,0.14844752]
[1680496738123,5.00364751,27673.0,27672.0,0.14844752]
[1680496739241,5.18435751,27673.0,27672.0,0.14844752]
[1680496743402,5.10615751,27673.0,27672.0,0.14844752]
[1680496744046,5.10616751,27673.0,27672.0,0.14844752]
[1680496744265,5.1939543,27673.0,27672.0,0.14844752]
[1680496744518,4.97913138,27673.0,27672.0,0.14844752]
[1680496745365,4.97913138,27673.0,27671.0,0.0216]
[1680496745366,0.51088,27672.0,27671.0,0.0216]
[1680496745582,4.08693466,27672.0,27671.0,0.0216]
[1680496745830,5.4421429,27672.0,27671.0,0.0216]
[1680496746908,0.00883,27671.0,27670.0,0.0221]
[1680496747185,3.87691323,27671.0,27670.0,0.0221]
[1680496747398,5.87691323,27671.0,27670.0,0.0221]
[1680496747604,5.87691323,27671.0,27670.0,0.01325]
[1680496747815,6.44684354,27671.0,27670.0,0.01325]
[1680496748030,6.23212147,27671.0,27670.0,0.01325]
[1680496748245,6.25912147,27671.0,27670.0,0.01325]
[1680496749107,6.23212147,27671.0,27670.0,0.01325]
[1680496749321,0.38,27669.0,27668.0,0.0216]
[1680496749535,2.65533271,27669.0,27668.0,0.0216]
[1680496750219,2.68233271,27669.0,27668.0,0.0216]
[1680496750863,2.59646751,27669.0,27668.0,0.0216]
[1680496751096,2.68233271,27669.0,27668.0,0.0216]
[1680496751310,2.51816751,27669.0,27668.0,0.0216]
[1680496752173,2.57703271,27669.0,27668.0,0.0216]
[1680496752488,2.60403271,27669.0,27668.0,0.0216]
[1680496752698,2.57150571,27669.0,27668.0,0.0216]
[1680496753126,2.47714051,27669.0,27668.0,0.0216]
[1680496753342,2.38317751,27669.0,27668.0,0.0216]
[1680496754639,2.39167751,27669.0,27668.0,0.0216]
[1680496754896,2.36467751,27669.0,27668.0,0.0216]
[1680496755118,2.39167751,27669.0,27668.0,0.0216]
[1680496756655,2.57237751,27669.0,27668.0,0.0216]
[1680496758982,2.54537751,27669.0,27668.0,0.0216]
[1680496759188,2.57237751,27669.0,27668.0,0.0216]
[1680496760349,2.58864051,27669.0,27668.0,0.0216]
[1680496761961,2.59774383,27669.0,27668.0,0.0216]
[1680496763075,2.68360903,27669.0,27668.0,0.0216]
[1680496765313,2.81240683,27669.0,27668.0,0.0216]
[1680496765756,2.72654163,27669.0,27668.0,0.0216]
[1680496766185,2.61559183,27669.0,27668.0,0.0216]
[1680496766408,2.6155914,27669.0,27668.0,0.0216]
[1680496766634,2.6318544,27669.0,27668.0,0.0216]
[1680496767279,2.71759127,27669.0,27668.0,0.0216]
[1680496768207,2.22107863,27669.0,27668.0,0.0216]
[1680496768430,2.1783449,27669.0,27668.0,0.09978]
[1680496768650,2.3071427,27669.0,27668.0,0.09978]
[1680496769106,2.24584163,27669.0,27668.0,0.09978]
[1680496769320,2.24584163,27669.0,27668.0,0.02178]
[1680496769756,2.54584163,27669.0,27668.0,0.00018]
[1680496770473,2.54584163,27669.0,27667.0,0.0216]
[1680496770474,2.93989926,27669.0,27667.0,0.0216]
[1680496770697,3.23749692,27668.0,27667.0,0.0216]
[1680496770913,3.35134592,27668.0,27667.0,0.0216]
[1680496771796,3.35146592,27668.0,27667.0,0.0216]
[1680496772009,3.35155592,27668.0,27667.0,0.0216]
[1680496772683,3.37855592,27668.0,27667.0,0.0216]
[1680496772904,3.37834592,27668.0,27667.0,0.0216]
[1680496773133,4.07834592,27668.0,27667.0,0.0216]
[1680496773374,4.07855592,27668.0,27667.0,0.0216]
[1680496775414,4.25064247,27668.0,27667.0,0.0216]
[1680496775634,4.07855592,27668.0,27667.0,0.0216]
[1680496776060,4.25064241,27668.0,27667.0,0.0216]
[1680496776265,4.07855592,27668.0,27667.0,0.0216]
[1680496777579,4.14212324,27668.0,27667.0,0.0216]
[1680496778116,4.09657174,27668.0,27667.0,0.0216]
[1680496779663,4.17457174,27668.0,27667.0,0.0216]
[1680496780765,4.25287174,27668.0,27667.0,0.0216]
[1680496780948,4.20012094,27668.0,27666.0,0.0216]
[1680496781118,3.60420217,27667.0,27666.0,0.0216]
[1680496781334,3.62046617,27667.0,27666.0,0.0216]
[1680496781542,3.63848199,27667.0,27666.0,0.0216]
[1680496781686,3.94698199,27667.0,27666.0,0.0216]
[1680496782124,4.32919023,27667.0,27666.0,0.0216]
[1680496782344,5.11415418,27667.0,27666.0,0.0216]
[1680496782763,4.97393789,27667.0,27666.0,0.0216]
[1680496782970,4.94693789,27667.0,27666.0,0.0216]
[1680496784034,4.97393789,27667.0,27666.0,0.0216]
[1680496784463,3.97393789,27667.0,27666.0,0.0216]
[1680496784903,4.97393789,27667.0,27666.0,0.0216]
[1680496785622,0.01963,27666.0,27665.0,0.0216]
[1680496785859,4.71635312,27666.0,27665.0,0.0216]
[1680496786079,4.89056894,27666.0,27661.0,0.02259941]
[1680496786309,1.12983596,27662.0,27661.0,0.02259941]
[1680496786526,2.8004915,27662.0,27661.0,0.02277941]
[1680496786738,2.72301051,27662.0,27661.0,0.02178]
[1680496787574,2.75001051,27662.0,27661.0,0.02178]
[1680496788659,1.44986297,27662.0,27661.0,0.02178]
[1680496789092,2.75102808,27662.0,27661.0,0.02178]
[1680496789356,3.06192304,27662.0,27661.0,0.02178]
[1680496789925,3.03492304,27662.0,27661.0,0.02178]
[1680496790139,3.06192304,27662.0,27661.0,0.02178]
[1680496790580,1.42286297,27662.0,27661.0,0.02178]
[1680496790780,1.44986297,27662.0,27661.0,0.02178]
[1680496791204,2.75103022,27662.0,27661.0,0.02178]
[1680496791412,2.75103022,27662.0,27661.0,0.0216]
[1680496794040,2.80642415,27662.0,27661.0,0.0216]
[1680496794464,3.32005491,27662.0,27661.0,0.0216]
[1680496794685,0.43,27661.0,27660.0,0.0216]
[1680496794899,2.50954322,27661.0,27660.0,0.0216]
[1680496795526,2.58744322,27661.0,27660.0,0.0216]
[1680496795743,3.04664827,27661.0,27660.0,0.0216]
[1680496795951,3.20261976,27661.0,27660.0,0.0166]
[1680496796164,2.84741152,27661.0,27660.0,0.0166]
[1680496796373,3.54741152,27661.0,27660.0,0.0166]
[1680496796582,3.39144003,27661.0,27660.0,0.0166]
[1680496797010,3.41844003,27661.0,27660.0,0.0166]
[1680496798814,3.33245904,27661.0,27660.0,0.0166]
[1680496799221,3.30545904,27661.0,27660.0,0.0166]
[1680496799410,4.33245904,27661.0,27660.0,0.0166]
[1680496799819,4.25415904,27661.0,27660.0,0.0166]
[1680496800224,4.28308004,27661.0,27660.0,0.0166]
[1680496800436,4.27458004,27661.0,27660.0,0.0166]
[1680496801556,4.25656422,27661.0,27660.0,0.0166]
[1680496802445,4.26506422,27661.0,27660.0,0.0166]
[1680496803316,4.48446491,27661.0,27660.0,0.0166]
[1680496804734,4.50248073,27661.0,27660.0,0.0166]
[1680496808172,4.28348004,27661.0,27660.0,0.0166]
[1680496808391,4.46427004,27661.0,27660.0,0.0166]
[1680496809362,4.25455904,27661.0,27660.0,0.0166]
[1680496814840,4.34054003,27661.0,27660.0,0.0166]
[1680496817293,4.34054003,27661.0,27660.0,0.01649554]
[1680496818635,4.46951152,27661.0,27660.0,0.01649554]
[1680496820854,4.38353053,27661.0,27660.0,0.01649554]
[1680496821755,4.73873877,27661.0,27660.0,0.01649554]
[1680496822625,4.38353053,27661.0,27660.0,0.01649554]
[1680496824819,4.42652103,27661.0,27660.0,0.01649554]
[1680496825053,4.55541958,27661.0,27660.0,0.01649554]
[1680496825479,4.42652103,27661.0,27660.0,0.01649554]
[1680496826793,5.06847121,27661.0,27660.0,0.01649554]
[1680496827011,5.24926121,27661.0,27660.0,0.01649554]
[1680496827954,4.87946291,27661.0,27660.0,0.01649554]
[1680496828173,3.87944762,27661.0,27660.0,0.01649554]
[1680496828840,4.0944001,27661.0,27660.0,0.01649554]
[1680496829727,4.1029001,27661.0,27660.0,0.01649554]
[1680496830159,4.0759001,27661.0,27660.0,0.01649554]
[1680496830373,4.1029001,27661.0,27660.0,0.01649554]
[1680496830583,4.0759001,27661.0,27660.0,0.01649554]
[1680496830802,3.93093811,27661.0,27660.0,0.01649554]
[1680496832797,3.97360694,27661.0,27660.0,0.01222866]
[1680496833667,3.97360694,27661.0,27660.0,0.00797392]
[1680496834745,3.75865446,27661.0,27660.0,0.00373691]
[1680496835182,3.97383287,27661.0,27660.0,0.00373691]
[1680496835404,3.97383301,27661.0,27660.0,0.00373691]
[1680496835657,0.43,27660.0,27659.0,0.0216]
[1680496835868,3.24476911,27660.0,27659.0,0.0216]
[1680496836305,0.43,27659.0,27657.0,0.0182]
[1680496836536,2.0708674,27658.0,27657.0,0.0182]
[1680496836749,2.19997717,27658.0,27657.0,0.0182]
[1680496836994,2.0708674,27658.0,27657.0,0.0182]
[1680496837861,2.19997717,27658.0,27657.0,0.0182]
[1680496838090,2.22697717,27658.0,27657.0,0.0182]
[1680496838537,2.14090399,27658.0,27657.0,0.0182]
[1680496839468,2.14090399,27658.0,27657.0,0.0182]
[1680496840712,2.18113323,27658.0,27657.0,0.01417708]
[1680496840926,2.35333028,27658.0,27657.0,0.01417708]
[1680496841139,2.22417034,27658.0,27657.0,0.01417708]
[1680496841566,2.35332946,27658.0,27657.0,0.01017092]
[1680496841791,2.35332996,27658.0,27657.0,0.01017092]
[1680496842067,1.81770811,27658.0,27657.0,0.08817092]
[1680496842286,1.9038104,27658.0,27657.0,0.08817092]
[1680496842504,1.81770811,27658.0,27657.0,0.08817092]
[1680496843790,1.81770811,27658.0,27657.0,0.08418145]
[1680496844737,1.81770811,27658.0,27657.0,0.0802086]
[1680496845419,2.18895308,27658.0,27657.0,0.0022086]
[1680496845653,0.05,27657.0,27655.0,0.22178]
[1680496845879,0.38469397,27656.0,27655.0,0.22178]
[1680496846532,0.42414594,27656.0,27655.0,0.22178]
[1680496848100,0.45114594,27656.0,27655.0,0.22178]
[1680496849408,0.44614594,27656.0,27655.0,0.22172]
[1680496850965,0.62614594,27656.0,27655.0,0.22172]
[1680496851193,1.09224646,27656.0,27655.0,0.22172]
[1680496851580,1.09224646,27656.0,27655.0,0.2216]
[1680496851793,0.59914594,27656.0,27655.0,0.2216]
[1680496852018,0.62614594,27656.0,27655.0,0.2216]
[1680496852224,0.59914594,27656.0,27655.0,0.2216]
[1680496852415,0.62614594,27656.0,27655.0,0.2216]
[1680496853022,0.59914594,27656.0,27655.0,0.2216]
[1680496853977,0.62614594,27656.0,27655.0,0.2216]
[1680496854186,0.59914594,27656.0,27655.0,0.2216]
[1680496854400,0.62614594,27656.0,27655.0,0.2216]
[1680496857747,0.59914594,27656.0,27655.0,0.2216]
[1680496858023,0.62614594,27656.0,27655.0,0.2216]
[1680496859126,0.71224646,27656.0,27655.0,0.2216]
[1680496859343,0.72851746,27656.0,27655.0,0.2216]
[1680496859569,0.71224646,27656.0,27655.0,0.2216]
[1680496859954,0.89303646,27656.0,27655.0,0.2216]
[1680496860606,0.89324646,27656.0,27655.0,0.21783596]
[1680496860818,2.51088997,27656.0,27655.0,0.01783596]
[1680496861021,2.51067997,27656.0,27655.0,0.01783596]
[1680496861615,2.86388997,27656.0,27655.0,0.01783596]
[1680496861828,2.99304959,27656.0,27655.0,0.01783596]
[1680496862183,2.99305959,27656.0,27655.0,0.01783596]
[1680496862637,3.01984959,27656.0,27655.0,0.0140876]
[1680496862862,2.86368997,27656.0,27655.0,0.0140876]
[1680496863119,2.89068997,27656.0,27655.0,0.0140876]
[1680496863549,2.93374907,27656.0,27655.0,0.01035486]
[1680496864307,2.90674907,27656.0,27655.0,0.01035486]
[1680496864505,2.93374907,27656.0,27655.0,0.01035486]
[1680496864709,2.93374907,27656.0,27655.0,0.00663767]
[1680496865559,3.01982363,27656.0,27655.0,0.00293597]
[1680496866656,0.43,27655.0,27653.0,0.0216]
[1680496866861,0.40128997,27654.0,27653.0,0.0216]
[1680496867705,0.43801146,27654.0,27653.0,0.0216]
[1680496868976,0.46501146,27654.0,27653.0,0.0216]
[1680496871281,0.84501146,27654.0,27653.0,0.0216]
[1680496871942,0.89885289,27654.0,27653.0,0.0216]
[1680496872157,1.07966289,27654.0,27653.0,0.0216]
[1680496873545,1.07966289,27654.0,27653.0,0.01811174]
[1680496876318,1.07987289,27654.0,27653.0,0.01811174]
[1680496879600,1.07966289,27654.0,27653.0,0.01463801]
[1680496879815,1.12966289,27654.0,27653.0,0.01463801]
[1680496880710,1.12966289,27654.0,27653.0,0.01119917]
[1680496881613,1.12966289,27654.0,27653.0,0.00777501]
[1680496881828,1.12987289,27654.0,27653.0,0.00777501]
[1680496882041,1.12966289,27654.0,27653.0,0.00777501]
[1680496882258,0.94885289,27654.0,27653.0,0.00777501]
[1680496882478,0.93258089,27654.0,27653.0,0.00777501]
[1680496882703,0.93258089,27654.0,27653.0,0.00436512]
[1680496883144,0.94704489,27654.0,27653.0,0.00436512]
[1680496883577,0.94704489,27654.0,27653.0,0.00096944]
[1680496884548,0.05,27653.0,27652.0,0.2]
[1680496884765,0.43517897,27653.0,27652.0,0.2]
[1680496884976,0.43517897,27653.0,27652.0,0.20012]
[1680496885672,0.46556291,27653.0,27652.0,0.20012]
[1680496885888,0.46578646,27653.0,27652.0,0.20012]
[1680496886101,0.46556291,27653.0,27652.0,0.20012]
[1680496886792,0.49256291,27653.0,27652.0,0.20012]
[1680496889218,0.49278646,27653.0,27652.0,0.20012]
[1680496890583,0.68807046,27653.0,27651.0,0.04178]
[1680496890807,0.38467597,27652.0,27651.0,0.0416]
[1680496891690,0.4183903,27652.0,27651.0,0.0416]
[1680496891908,0.41861363,27652.0,27651.0,0.0416]
[1680496892117,0.4183903,27652.0,27651.0,0.0416]
[1680496892776,0.4453903,27652.0,27651.0,0.0416]
[1680496892999,0.44561363,27652.0,27651.0,0.0416]
[1680496906757,0.46007863,27652.0,27651.0,0.0416]
[1680496908058,0.53797863,27652.0,27651.0,0.0416]
[1680496910918,0.71879863,27652.0,27651.0,0.0416]
[1680496912230,0.64089863,27652.0,27651.0,0.0416]
[1680496912658,1.02089863,27652.0,27651.0,0.0416]
[1680496916006,1.32089863,27652.0,27651.0,0.0416]
[1680496916887,0.72441263,27652.0,27651.0,0.0416]
[1680496917124,0.36093766,27652.0,27651.0,0.0416]
[1680496917355,0.06093766,27652.0,27651.0,0.0416]
[1680496918187,0.08189766,27652.0,27651.0,0.0416]
[1680496918616,0.06093766,27652.0,27651.0,0.0416]
[1680496919064,0.43665063,27652.0,27651.0,0.0416]
[1680496919290,0.45111563,27652.0,27651.0,0.0416]
[1680496919507,0.43665063,27652.0,27651.0,0.0416]
[1680496919733,0.74515063,27652.0,27651.0,0.0416]
[1680496934580,0.75961563,27652.0,27651.0,0.0416]
[1680496936690,0.75961563,27652.0,27651.0,0.0421]
[1680496938680,1.22569019,27652.0,27651.0,0.03926633]
[1680496939034,2.60523954,27652.0,27651.0,0.03926633]
[1680496939552,2.60523954,27652.0,27651.0,0.03644446]
[1680496940633,2.60523954,27652.0,27651.0,0.03337889]
[1680496941699,2.60523954,27652.0,27651.0,0.03032725]
[1680496942673,2.60523954,27652.0,27651.0,0.02728948]
[1680496943389,2.78606954,27652.0,27651.0,0.02728948]
[1680496943593,2.78606954,27652.0,27651.0,0.02426552]
[1680496944688,2.78606954,27652.0,27651.0,0.02125531]
[1680496944908,3.13716248,27652.0,27651.0,0.02125531]
[1680496945128,3.43510011,27652.0,27651.0,0.02125531]
[1680496945610,3.45113683,27652.0,27651.0,0.02125531]
[1680496945804,3.63573683,27652.0,27651.0,0.01825878]
[1680496946239,3.60873683,27652.0,27651.0,0.01825878]
[1680496946451,3.63573683,27652.0,27651.0,0.01825878]
[1680496946744,3.60873683,27652.0,27651.0,0.01528585]
[1680496946970,3.80784146,27652.0,27651.0,0.01528585]
[1680496947626,3.80784146,27652.0,27651.0,0.0005]
[1680496947850,4.00896089,27652.0,27651.0,6.43e-06]
[1680496948042,3.79377729,27652.0,27651.0,6.43e-06]
[1680496948493,3.43856905,27652.0,27651.0,6.43e-06]
[1680496948713,0.43,27651.0,27650.0,0.0246]
[1680496948922,3.37272539,27651.0,27650.0,0.0246]
[1680496949139,3.39074121,27651.0,27650.0,0.0246]
[1680496949574,3.41724427,27651.0,27650.0,0.0166551]
[1680496949807,3.44424427,27651.0,27650.0,5.1e-06]
[1680496950034,3.84246021,27651.0,27650.0,5.1e-06]
[1680496950261,3.48725197,27651.0,27650.0,5.1e-06]
[1680496950723,3.48725197,27651.0,27649.0,0.0216]
[1680496950946,2.65005536,27650.0,27649.0,0.0216]
[1680496951156,2.82172136,27650.0,27649.0,0.0216]
[1680496951592,2.86382426,27650.0,27649.0,0.01063238]
[1680496951867,3.0357831,27650.0,27649.0,0.01063238]
[1680496952082,0.38,27648.0,27644.0,0.0216]
[1680496952297,0.63888,27645.0,27644.0,0.0216]
[1680496952516,1.32965497,27645.0,27644.0,0.0216]
[1680496952742,1.33815497,27645.0,27644.0,0.0216]
[1680496953190,1.33815497,27645.0,27644.0,0.0166]
[1680496953403,1.15727497,27645.0,27644.0,0.0166]
[1680496953837,0.77727497,27645.0,27644.0,0.0166]
[1680496954061,0.78980597,27645.0,27644.0,0.0166]
[1680496954290,1.36514497,27645.0,27644.0,0.0166]
[1680496954560,1.18427497,27645.0,27644.0,0.0166]
[1680496954774,1.21003428,27645.0,27644.0,0.01404625]
[1680496955613,1.21003428,27645.0,27644.0,0.01138841]
[1680496956588,1.21003428,27645.0,27644.0,0.00874265]
[1680496957455,1.26003428,27645.0,27644.0,0.00874265]
[1680496957658,1.26003428,27645.0,27644.0,0.00610892]
[1680496958531,1.41019218,27645.0,27643.0,0.01550892]
[1680496958737,1.41019218,27645.0,27640.0,0.0216]
[1680496958738,0.05,27643.0,27640.0,0.0216]
[1680496958942,0.2,27641.0,27640.0,0.0216]
[1680496959143,1.27960697,27641.0,27640.0,0.0216]
[1680496959557,1.32960697,27641.0,27640.0,0.0216]
[1680496959962,1.48610697,27641.0,27640.0,0.0216]
[1680496960410,1.51310697,27641.0,27640.0,0.0216]
[1680496960617,1.48610697,27641.0,27640.0,0.0216]
[1680496960825,1.51310697,27641.0,27640.0,0.0216]
[1680496961643,1.48610697,27641.0,27640.0,0.0216]
[1680496961876,0.37663597,27641.0,27640.0,0.13545399]
[1680496962032,0.37663597,27641.0,27640.0,0.0216]
[1680496962033,0.39131697,27641.0,27640.0,0.0216]
[1680496962263,0.77110697,27641.0,27640.0,0.0216]
[1680496962639,0.77110697,27641.0,27640.0,0.01913837]
[1680496962640,0.82272324,27641.0,27640.0,0.01913837]
[1680496962876,0.84572324,27641.0,27640.0,0.01913837]
[1680496963228,0.95072324,27641.0,27640.0,0.01913837]
[1680496963449,1.23222324,27641.0,27640.0,0.01913837]
[1680496963685,1.25922324,27641.0,27640.0,0.01668793]
[1680496963909,1.23222324,27641.0,27640.0,0.01668793]
[1680496964121,1.25944411,27641.0,27640.0,0.01668793]
[1680496964605,1.25944411,27641.0,27640.0,0.01424863]
[1680496965687,1.25944411,27641.0,27640.0,0.01182042]
[1680496966572,1.25944411,27641.0,27640.0,0.00682042]
[1680496966810,1.25944411,27641.0,27639.0,0.00211684]
[1680496967057,0.80516797,27640.0,27639.0,0.00211684]
[1680496967755,0.8292195,27640.0,27639.0,0.00211684]
[1680496967979,0.82944015,27640.0,27639.0,0.00211684]
[1680496968169,0.7792195,27640.0,27639.0,0.00211684]
[1680496968725,0.7877195,27640.0,27639.0,0.00211684]
[1680496968963,0.8147195,27640.0,27639.0,0.00211684]
[1680496969190,0.7365195,27640.0,27639.0,0.00211684]
[1680496970348,0.37304453,27640.0,27639.0,0.00211684]
[1680496970571,0.05105153,27640.0,27639.0,0.41236083]
[1680496970809,0.05105153,27640.0,27639.0,0.41586084]
[1680496971260,0.05105153,27640.0,27639.0,0.41068084]
[1680496971483,0.02405153,27640.0,27639.0,0.41068084]
[1680496971708,0.18021,27645.0,27639.0,0.41168084]
[1680496971945,0.18,27645.0,27643.0,0.0783]
[1680496972172,0.18021,27645.0,27644.0,0.0783]
[1680496972400,0.18021,27645.0,27644.0,0.118726]
[1680496973060,0.19221,27645.0,27644.0,0.138813]
[1680496973950,0.192,27645.0,27644.0,0.13680345]
[1680496975290,0.192,27645.0,27644.0,0.13180345]
[1680496975751,0.21274824,27645.0,27644.0,0.11371645]
[1680496975961,0.21297001,27645.0,27644.0,0.11371645]
[1680496976400,0.21297001,27645.0,27644.0,0.07329045]
[1680496977301,0.59091398,27645.0,27644.0,0.002]
[1680496977598,0.59732698,27645.0,27644.0,0.002]
[1680496978028,0.59753698,27645.0,27644.0,0.002]
[1680496984849,0.05,27644.0,27642.0,0.197]
[1680496985094,0.37669397,27643.0,27642.0,0.197]
[1680496986402,0.37669397,27643.0,27641.0,0.00018]
[1680496986403,0.38519397,27643.0,27641.0,0.00018]
[1680496986669,0.451213,27642.0,27639.0,0.19816896]
[1680496986937,0.37592797,27641.0,27639.0,0.00116896]
[1680496987205,0.029885,27640.0,27639.0,0.00098896]
[1680496987466,0.38485997,27640.0,27639.0,0.00098896]
[1680496987699,0.38485997,27640.0,27638.0,0.0216]
[1680496987917,0.37547597,27639.0,27638.0,0.0216]
[1680496988157,0.38397597,27639.0,27638.0,0.0216]
[1680496988399,0.39844797,27639.0,27638.0,0.0216]
[1680496988616,0.38397597,27639.0,27638.0,0.0216]
[1680496988838,0.39844797,27639.0,27638.0,0.0216]
[1680496989084,0.77844797,27639.0,27638.0,0.0216]
[1680496989536,0.82844797,27639.0,27638.0,0.0216]
[1680496989765,1.12865797,27639.0,27638.0,0.0216]
[1680496989983,1.1288896,27639.0,27638.0,0.0216]
[1680496990226,1.1558896,27639.0,27638.0,0.0216]
[1680496990435,1.2850896,27639.0,27638.0,0.0216]
[1680496990689,1.3120896,27639.0,27638.0,0.0216]
[1680496991359,1.2850896,27639.0,27638.0,0.0216]
[1680496991580,1.3120896,27639.0,27638.0,0.0216]
[1680496992044,1.2338896,27639.0,27638.0,0.0216]
[1680496992507,1.2068896,27639.0,27638.0,0.0216]
[1680496992745,1.2338896,27639.0,27638.0,0.0216]
[1680496994395,1.25190542,27639.0,27638.0,0.0216]
[1680496995577,1.2338896,27639.0,27638.0,0.0216]
[1680496995807,0.7529176,27639.0,27638.0,0.0216]
[1680496996032,0.7673896,27639.0,27638.0,0.0216]
[1680496996490,0.76333123,27639.0,27638.0,0.0216]
[1680496996773,0.94423123,27639.0,27638.0,0.0216]
[1680496997714,0.70789002,27639.0,27638.0,0.0216]
[1680496997948,0.34773263,27639.0,27638.0,0.0216]
[1680496998147,0.03023163,27639.0,27638.0,0.0216]
[1680496998403,0.00323163,27639.0,27638.0,0.0216]
[1680496998636,0.03023163,27639.0,27638.0,0.0216]
[1680496998830,0.00323163,27639.0,27638.0,0.0216]
[1680496999100,0.03023163,27639.0,27638.0,0.0216]
[1680496999558,0.02392163,27639.0,27638.0,0.0216]
[1680496999780,0.05131363,27639.0,27638.0,0.0216]
[1680497000477,0.03023163,27639.0,27638.0,0.0216]
[1680497000948,0.61127978,27639.0,27638.0,0.0216]
[1680497001174,0.96127978,27639.0,27638.0,0.0216]
[1680497001643,0.98039429,27639.0,27638.0,0.01968855]
[1680497001871,0.95339429,27639.0,27638.0,0.01968855]
[1680497002075,1.05869429,27639.0,27638.0,0.01968855]
[1680497002320,0.98039429,27639.0,27638.0,0.01968855]
[1680497002758,0.98039429,27639.0,27638.0,0.01779435]
[1680497002972,0.95339429,27639.0,27638.0,0.01779435]
[1680497003161,0.98039429,27639.0,27638.0,0.01779435]
[1680497003635,0.98039429,27639.0,27638.0,0.01590876]
[1680497004756,0.98039429,27639.0,27638.0,0.01403174]
[1680497005206,0.79948429,27639.0,27638.0,0.01403174]
[1680497005416,0.95338429,27639.0,27638.0,0.01403174]
[1680497005661,0.98038429,27639.0,27638.0,0.01216325]
[1680497006735,0.98038429,27639.0,27638.0,0.01030325]
[1680497006954,0.95338429,27639.0,27638.0,0.01030325]
[1680497007183,0.98038429,27639.0,27638.0,0.01030325]
[1680497007702,0.98038429,27639.0,27638.0,0.00845171]
[1680497007918,0.93038429,27639.0,27638.0,0.00845171]
[1680497008733,1.36506359,27639.0,27638.0,0.00660858]
[1680497009532,1.36506359,27639.0,27638.0,0.00477383]
[1680497010543,1.36506359,27639.0,27638.0,0.00294742]
[1680497011662,1.36506359,27639.0,27638.0,0.00112931]
[1680497012318,1.45236359,27639.0,27638.0,0.00112931]
[1680497012525,0.05,27638.0,27636.0,0.0216]
[1680497012735,0.44895197,27637.0,27636.0,0.0216]
[1680497012967,0.44895197,27637.0,27636.0,0.0166]
[1680497013586,0.84697525,27637.0,27636.0,0.01479767]
[1680497013803,0.87397525,27637.0,27636.0,0.01479767]
[1680497014212,0.84697525,27637.0,27636.0,0.01479767]
[1680497014415,0.87397525,27637.0,27636.0,0.01479767]
[1680497014624,0.84697525,27637.0,27636.0,0.01300353]
[1680497014855,0.84728935,27637.0,27636.0,0.01300353]
[1680497015064,0.87397525,27637.0,27636.0,0.01300353]
[1680497015274,1.17397525,27637.0,27636.0,0.01300353]
[1680497015696,1.17397525,27637.0,27636.0,0.01121755]
[1680497016194,1.35490525,27637.0,27636.0,0.01121755]
[1680497016636,1.35490525,27637.0,27636.0,0.00943969]
[1680497017235,2.65710329,27637.0,27636.0,0.00943969]
[1680497017452,2.71690329,27637.0,27636.0,0.00943969]
[1680497017669,2.74390329,27637.0,27636.0,0.00766991]
[1680497017886,2.71690329,27637.0,27636.0,0.00766991]
[1680497018099,2.74390329,27637.0,27636.0,0.00766991]
[1680497018292,2.71690329,27637.0,27636.0,0.00766991]
[1680497018763,2.71717812,27637.0,27636.0,0.00590817]
[1680497019519,2.74417812,27637.0,27636.0,0.00415444]
[1680497020657,2.74417812,27637.0,27636.0,0.00240868]
[1680497020823,2.71717812,27637.0,27636.0,0.00240868]
[1680497021050,2.74417812,27637.0,27636.0,0.00240868]
[1680497021400,2.76219394,27637.0,27636.0,0.00240868]
[1680497021831,2.76219394,27637.0,27636.0,0.00068754]
[1680497022696,0.43,27636.0,27635.0,0.0216]
[1680497022914,1.15779797,27636.0,27635.0,0.0216]
[1680497023145,1.16079797,27636.0,27635.0,0.0216]
[1680497023850,1.17589504,27636.0,27635.0,0.0199518]
[1680497024057,1.20262051,27636.0,27635.0,0.0199518]
[1680497024729,1.20262051,27636.0,27635.0,0.01831748]
[1680497025614,1.20262051,27636.0,27635.0,0.01670554]
[1680497026649,1.20262051,27636.0,27635.0,0.01510784]
[1680497027702,1.20262051,27636.0,27635.0,0.01352429]
[1680497027921,1.20289504,27636.0,27635.0,0.01352429]
[1680497028821,1.20289504,27636.0,27635.0,0.01196915]
[1680497029232,1.38383504,27636.0,27635.0,0.01196915]
[1680497029767,1.38383504,27636.0,27635.0,0.01043451]
[1680497030573,1.17394804,27636.0,27635.0,0.01043451]
[1680497030817,0.79394804,27636.0,27635.0,0.00891613]
[1680497031345,0.76694804,27636.0,27635.0,0.00891613]
[1680497031511,0.79394804,27636.0,27635.0,0.00891613]
[1680497031733,0.79394804,27636.0,27635.0,0.00740466]
[1680497032434,0.77947504,27636.0,27635.0,0.00740466]
[1680497032671,0.36600007,27636.0,27635.0,0.00597505]
[1680497032892,0.34509707,27636.0,27635.0,0.00597505]
[1680497033111,0.04509707,27636.0,27635.0,0.00597505]
[1680497033339,0.34509707,27636.0,27635.0,0.00597505]
[1680497033562,0.36628707,27636.0,27635.0,0.00597505]
[1680497033783,0.33928707,27636.0,27635.0,0.00440962]
[1680497034195,0.70873504,27636.0,27635.0,0.00440962]
[1680497034415,0.73573504,27636.0,27635.0,0.00440962]
[1680497034639,0.73573504,27636.0,27635.0,0.00267895]
[1680497034640,0.71723504,27636.0,27635.0,0.00267895]
[1680497034864,0.74423504,27636.0,27635.0,0.00267895]
[1680497035142,0.74618204,27636.0,27635.0,0.00267895]
[1680497035375,0.77318204,27636.0,27635.0,0.00267895]
[1680497035604,0.77318204,27636.0,27635.0,0.0009579]
[1680497036075,0.82318204,27636.0,27635.0,0.0009579]
[1680497036301,1.20318204,27636.0,27635.0,0.0009579]
[1680497036529,1.17618204,27636.0,27635.0,0.0009579]
[1680497036763,0.43,27635.0,27634.0,0.0216]
[1680497037005,1.31069797,27635.0,27634.0,0.0216]
[1680497037452,1.12975797,27635.0,27634.0,0.0216]
[1680497037673,1.17056176,27635.0,27634.0,0.02006559]
[1680497038636,1.17056176,27635.0,27634.0,0.01853885]